fUSD/lending_fUSD_20240331
["ID","MTS","AMOUNT","RATE_DAILY","PERIOD"]
[321107038,1711899044212,-523.54471295,0.00043755,2]
[321107039,1711899044221,-886.3753014,0.00043755,2]
[321107040,1711899044231,-9258.00764253,0.00043755,2]
[321107041,1711899044241,-467.77328392,0.00043755,2]
[321107042,1711899044252,-384.4238418,0.00043755,2]
[321107043,1711899044261,-240.08105957,0.00043755,2]
[321107044,1711899044270,-2465.83747727,0.00043755,14]
[321107045,1711899044279,-1115.98769307,0.00043755,10]
[321107046,1711899044288,-1763.48197311,0.00043755,2]
[321107047,1711899044297,-1374.98423013,0.00043755,10]
[321107048,1711899044306,-532.03852694,0.00043755,2]
[321107049,1711899044315,-4898.13681948,0.00043755,2]
[321107050,1711899044326,-738.85617067,0.00043755,10]
[321107051,1711899044334,-353.91956168,0.00043755,2]
[321107052,1711899044343,-591.63747715,0.00043755,2]
[321107053,1711899044352,-3032.09827416,0.00043755,7]
[321107054,1711899044361,-192.28621157,0.00043755,7]
[321107055,1711899044370,-1784.70607232,0.00043755,2]
[321107056,1711899044379,-294.78883221,0.00043755,14]
[321107057,1711899044388,-337.06952388,0.00043755,2]
[321107058,1711899044399,-1051.66325488,0.00043755,7]
[321107059,1711899044408,-1329.81484633,0.00043755,20]
[321107060,1711899044417,-5028.66795686,0.00043755,2]
[321107061,1711899044429,-204.69310846,0.00043755,5]
[321107062,1711899044439,-1003.6667417,0.00043755,2]
[321107063,1711899044450,-213.89584315,0.00043755,2]
[321107064,1711899044459,-636.29558818,0.00043755,2]
[321107065,1711899044468,-1002.79407176,0.00043755,2]
[321107066,1711899044477,-789.603829,0.00043755,2]
[321107067,1711899044486,-28610980.91472919,0.00043755,30]
[321107068,1711899044649,-3209479.25393259,0.00043755,30]
[321107069,1711899044931,-155.0,0.00027286,2]
[321107070,1711899044940,-195.2695717,0.00027286,2]
[321107071,1711899044951,-82.54094299,0.00027286,2]
[321107072,1711899044960,-205.83331766,0.00027286,2]
[321107073,1711899044971,-155.0,0.00027286,2]
[321107074,1711899044979,-338.53744175,0.00042,2]
[321107075,1711899045007,-917.16623103,0.00042,2]
[321107076,1711899045016,-546.15560053,0.00042,14]
[321107077,1711899045322,-155.0,0.00027283,2]
[321107078,1711899045331,-407.97743546,0.00042,14]
[321107079,1711899045427,-2.15534164,0.00042,14]
[321107080,1711899045454,-754.40624037,0.00042,14]
[321107081,1711899045463,-151.0,0.00042,14]
[321107082,1711899045472,-4953.52116534,0.0004211,2]
[321107083,1711899045484,-4606.80320277,0.0004211,2]
[321107094,1711899046223,-265.26654513,0.00041999,4]
[321107095,1711899046233,-1710.694618,0.00042,14]
[321107096,1711899046242,-43780.32658566,0.0004211,2]
[321107097,1711899046251,-1710.694618,0.00043755,14]
[321107098,1711899046261,-1710.694618,0.00043755,14]
[321107099,1711899046270,-1710.694618,0.00043755,14]
[321107100,1711899046279,-151.0,0.00043755,14]
[321107101,1711899046289,-151.0,0.00043755,14]
[321107102,1711899046298,-1710.694618,0.00043755,14]
[321107103,1711899046307,-151.0,0.00043755,14]
[321107104,1711899046319,-1710.694618,0.00043755,14]
[321107105,1711899046328,-943.29916117,0.00043755,14]
[321107106,1711899055415,651.76734906,0.00023336,2]
[321107107,1711899058201,19594.96330185,0.00024564,2]
[321107108,1711899074340,206.04446897,0.00024564,2]
[321107109,1711899145445,1130.14343401,0.00024564,2]
[321107110,1711899149427,150.0,0.0002,2]
[321107111,1711899149448,95.69720265,0.0002,2]
[321107112,1711899150301,54.30279735,0.00024564,2]
[321107113,1711899150321,150.0,0.00024564,2]
[321107114,1711899150342,150.0,0.00024564,2]
[321107115,1711899150362,150.0,0.00024564,2]
[321107116,1711899150385,150.0,0.00024564,2]
[321107117,1711899150405,150.0,0.00024564,2]
[321107118,1711899150426,150.0,0.00024564,2]
[321107119,1711899150447,150.0,0.00024564,2]
[321107120,1711899150468,150.0,0.00024564,2]
[321107121,1711899150488,150.0,0.00024564,2]
[321107122,1711899150508,150.0,0.00024564,2]
[321107123,1711899150528,150.0,0.00024564,2]
[321107124,1711899150548,95.69720265,0.00024564,2]
[321107125,1711899153715,1467.66424018,0.00024564,2]
[321107126,1711899154604,1810.82040502,0.00018423,2]
[321107127,1711899163107,150.0,0.00024564,2]
[321107128,1711899163128,150.0,0.00024564,2]
[321107129,1711899163148,150.0,0.00024564,2]
[321107130,1711899163167,150.0,0.00024564,2]
[321107131,1711899163188,150.0,0.00024564,2]
[321107132,1711899163211,150.0,0.00024564,2]
[321107133,1711899163231,150.0,0.00024564,2]
[321107134,1711899163251,150.0,0.00024564,2]
[321107135,1711899163271,150.0,0.00024564,2]
[321107136,1711899163291,150.0,0.00024564,2]
[321107137,1711899163312,150.0,0.00024564,2]
[321107138,1711899163332,150.0,0.00024564,2]
[321107139,1711899163354,150.0,0.00024564,2]
[321107140,1711899163374,180.52307215,0.00024564,2]
[321107141,1711899163396,294.37787176,0.00024564,2]
[321107142,1711899170215,150.0,0.00024564,2]
[321107143,1711899170237,150.0,0.00024564,2]
[321107144,1711899170258,101.31933089,0.00024564,2]
[321107145,1711899177781,3742.16722617,0.00024564,10]
[321107146,1711899197559,1897.47033907,0.00024564,10]
[321107147,1711899289786,10000.0,0.0003,30]
[321107148,1711899289808,57333.0,0.0003,30]
[321107151,1711899379327,155.0,0.000285,30]
[321107154,1711899769498,-297.68813563,0.0002717,4]
[321107155,1711899835030,-268.49660707,0.00027064,2]
[321107156,1711899835052,-155.0,0.00027064,2]
[321107157,1711899835085,-425.24898664,0.00027064,2]
[321107158,1711899835132,-155.0,0.00027065,2]
[321107159,1711899835175,-681.07919272,0.00027065,2]
[321107160,1711899835217,-205.83331766,0.00027066,2]
[321107161,1711899835257,-109.34189591,0.00027066,2]
[321107162,1711899835637,-2000.0,0.00027066,2]
[321107163,1711899836453,-60.36139861,0.00027066,2]
[321107164,1711899836488,-530.73136111,0.00027066,2]
[321107165,1711899836520,-403.89160303,0.00027067,2]
[321107166,1711899836553,-1000.0,0.00027068,2]
[321107167,1711899883390,5.01563725,0.00027068,2]
[321107168,1711899883411,313.13233438,0.00027068,2]
[321107169,1711899888015,155.0,0.00027068,2]
[321107170,1711899901385,159.20393887,0.00027068,2]
[321107171,1711899904011,155.0,0.00027068,2]
[321107172,1711899922020,194.96966026,0.00027068,2]
[321107174,1711899929418,1022.69406649,0.00027067,2]
[321107175,1711899929437,20.28129929,0.00027067,2]
[321107176,1711900013915,1208.42742557,0.00027068,2]
[321107191,1711900089227,771.29127514,0.00027068,2]
[321107192,1711900089249,228.70872486,0.00027068,2]
[321107193,1711900092655,403.89160303,0.00027068,2]
[321107199,1711900232004,-155.0,0.00027069,2]
[321107200,1711900232014,-158.41351975,0.00027069,2]
[321107201,1711900232023,-4460.3862,0.0002707,2]
[321107202,1711900232032,-323.60850302,0.00027169,2]
[321107203,1711900232042,-6000.0,0.0002717,2]
[321107204,1711900232051,-200.43919673,0.00028,2]
[321107205,1711900232060,-259.0,0.0003,2]
[321107206,1711900232070,-1598.16041118,0.0003,4]
[321107207,1711900232079,-572.0,0.0003,2]
[321107208,1711900232089,-46491.55427851,0.00030447,2]
[321107209,1711900232100,-1231.98607209,0.00030447,2]
[321107210,1711900232111,-3739.38438939,0.00030447,2]
[321107211,1711900232123,-319.91350895,0.00030447,2]
[321107212,1711900232159,-1385.7826449,0.00030447,2]
[321107213,1711900232192,-1385.68913495,0.00030447,2]
[321107214,1711900232244,-1000.0,0.00027999,2]
[321107215,1711900232253,-1793.0,0.00030447,2]
[321107216,1711900232264,-866.20973284,0.00030447,2]
[321107219,1711900232402,-2207.12351952,0.00030447,2]
[321107229,1711900238550,-48.68066911,0.00030447,2]
[321107230,1711900238569,-90733.51644004,0.00030447,2]
[321107231,1711900238583,-17832.31373692,0.00030448,2]
[321107232,1711900238597,-654.0483988,0.00030548,4]
[321107233,1711900238611,-988.82,0.00030548,2]
[321107234,1711900238625,-16440.04458405,0.00030549,2]
[321107235,1711900238640,-150.99,0.00030549,2]
[321107236,1711900238655,-206.0,0.00030635,2]
[321107237,1711900238670,-436.38717187,0.00030635,4]
[321107238,1711900238685,-916.85742329,0.00030649,4]
[321107239,1711900238700,-155.22885536,0.00030649,4]
[321107240,1711900238716,-708.1406563,0.0003065,4]
[321107241,1711900238732,-304.96454369,0.0003065,4]
[321107242,1711900238746,-2993.03314038,0.00030651,4]
[321107243,1711900238761,-155.1809351,0.00030651,4]
[321107244,1711900238775,-206.99355215,0.00030651,4]
[321107245,1711900238790,-9506.0773753,0.00030752,2]
[321107246,1711900238804,-5000.0,0.00030752,2]
[321107247,1711900238817,-5000.0,0.00030752,2]
[321107248,1711900238831,-5000.0,0.00030752,2]
[321107249,1711900238847,-5000.0,0.00030752,2]
[321107250,1711900238861,-250.0,0.00031559,2]
[321107251,1711900238875,-4804.29,0.00031657,2]
[321107252,1711900238889,-1278.17,0.00031752,2]
[321107253,1711900238904,-6217.99759331,0.00031773,5]
[321107254,1711900238918,-848.97,0.00031781,2]
[321107255,1711900238932,-79593.29,0.00031853,2]
[321107256,1711900238946,-17832.31373691,0.00031873,2]
[321107257,1711900238960,-16440.04458401,0.00031963,2]
[321107258,1711900238975,-157.24,0.00031994,2]
[321107259,1711900238989,-158.41351975,0.00032047,2]
[321107260,1711900239004,-157.24,0.0003255,2]
[321107261,1711900239019,-152.02,0.00032946,2]
[321107262,1711900239033,-350.0,0.00033,3]
[321107263,1711900239047,-157.24,0.00033105,2]
[321107264,1711900239062,-17832.31373691,0.00033299,2]
[321107265,1711900239076,-6217.99759325,0.00033369,6]
[321107266,1711900239090,-16440.04458401,0.00033377,2]
[321107267,1711900239104,-157.24,0.00033661,2]
[321107268,1711900239119,-186.93,0.00033899,2]
[321107269,1711900239134,-848.97,0.00034045,2]
[321107270,1711900239148,-3076.01,0.00034069,2]
[321107271,1711900239163,-774.96,0.00034178,2]
[321107272,1711900239178,-4804.29,0.00034396,2]
[321107273,1711900239193,-17832.31373691,0.00034724,2]
[321107274,1711900239207,-16440.04458401,0.00034792,2]
[321107275,1711900239221,-6217.99759325,0.00034965,7]
[321107276,1711900239236,-400.0,0.00035,3]
[321107277,1711900239252,-520.0,0.00035023,2]
[321107278,1711900239267,-176.3,0.00036018,2]
[321107279,1711900239282,-17832.31373691,0.0003615,2]
[321107280,1711900239296,-16440.04458401,0.00036206,2]
[321107281,1711900239310,-848.97,0.00036309,2]
[321107282,1711900239325,-6217.99759325,0.00036561,8]
[321107283,1711900239340,-589.8853,0.00036701,2]
[321107284,1711900239354,-191.46,0.00036735,2]
[321107285,1711900239368,-163.59,0.00036917,2]
[321107286,1711900239382,-450.0,0.00037,3]
[321107287,1711900239397,-158.41351975,0.00037025,2]
[321107288,1711900239407,-150.68,0.00037089,2]
[321107289,1711900239416,-371.12,0.00037099,2]
[321107290,1711900239652,-4804.29,0.00037136,2]
[321107291,1711900239667,-180.0,0.00037151,2]
[321107292,1711900239676,-17832.31373691,0.00037575,2]
[321107293,1711900239686,-16440.04458401,0.0003762,2]
[321107294,1711900239695,-160.76,0.00037714,2]
[321107295,1711900239703,-200.0,0.00037739,2]
[321107296,1711900239713,-480.0,0.00037739,2]
[321107297,1711900239722,-198.78,0.00038027,15]
[321107299,1711900239731,-6217.99759325,0.00038158,8]
[321107301,1711900239741,-163.59,0.00038223,2]
[321107302,1711900239750,-1502.84340584,0.00038453,2]
[321107303,1711900239759,-152.02,0.0003852,2]
[321107304,1711900239768,-166.36,0.00038553,2]
[321107305,1711900239777,-848.97,0.00038573,2]
[321107306,1711900239787,-1012.60541616,0.0003859,10]
[321107308,1711900239796,-1502.84340571,0.00038798,2]
[321107310,1711900239805,-500.0,0.00039,3]
[321107311,1711900239815,-17832.31373691,0.00039001,2]
[321107312,1711900239824,-16440.04458401,0.00039034,2]
[321107313,1711900239834,-1502.84340571,0.00039142,2]
[321107314,1711900239843,-520.0,0.00039401,2]
[321107317,1711900239853,-1502.84340571,0.00039487,2]
[321107319,1711900239862,-163.59,0.00039529,2]
[321107321,1711900239871,-539.0,0.00039672,7]
[321107323,1711900239880,-829.0,0.00039672,7]
[321107325,1711900239889,-191.73855337,0.0003969,2]
[321107327,1711900239899,-23084.89682738,0.000397,3]
[321107329,1711900239907,-523.0,0.00039726,7]
[321107331,1711900239916,-6217.99759325,0.00039754,9]
[321107333,1711900239925,-1502.84340571,0.00039831,2]
[321107335,1711900239935,-542.06333978,0.0004,120]
[321107337,1711900239945,-212.77796862,0.0004,30]
[321107339,1711900239954,-5000.0,0.0004,14]
[321107341,1711900239963,-388.88174339,0.0004001,15]
[321107343,1711900239972,-37543.2864,0.00040023,2]
[321107345,1711900239982,-3817.2553,0.00040121,3]
[321107347,1711900239991,-4440.4018,0.00040121,2]
[321107349,1711900240001,-8783.8679,0.00040124,2]
[321107351,1711900240010,-166.36,0.00040144,2]
[321107353,1711900240019,-1502.84340571,0.00040176,2]
[321107355,1711900240029,-2918.87337012,0.00040211,2]
[321107357,1711900240039,-1044.22696874,0.0004022,30]
[321107359,1711900240048,-1000.0,0.00040223,2]
[321107361,1711900240058,-496.94121834,0.00040225,4]
[321107363,1711900240067,-17832.31373691,0.00040426,2]
[321107365,1711900240077,-16440.04458401,0.00040449,2]
[321107367,1711900240087,-539.0,0.00040494,7]
[321107370,1711900240097,-829.0,0.00040494,7]
[321107372,1711900240106,-1502.84340571,0.0004052,2]
[321107374,1711900240115,-523.0,0.00040548,7]
[321107376,1711900240124,-198.78,0.00040767,15]
[321107378,1711900240134,-163.59,0.00040834,2]
[321107380,1711900240143,-848.97,0.00040837,2]
[321107382,1711900240153,-1502.84340571,0.00040865,2]
[321107384,1711900240163,-4075.46,0.00040867,2]
[321107386,1711900240172,-550.0,0.00041,3]
[321107388,1711900240182,-160.07,0.00041072,2]
[321107390,1711900240191,-2128.19,0.00041095,8]
[321107392,1711900240200,-2128.19,0.00041095,8]
[321107394,1711900240209,-2128.19,0.00041095,8]
[321107396,1711900240219,-2128.19,0.00041095,8]
[321107398,1711900240229,-2128.19,0.00041095,8]
[321107399,1711900240239,-2128.19,0.00041095,8]
[321107402,1711900240250,-2128.19,0.00041095,8]
[321107403,1711900240260,-2128.19,0.00041095,8]
[321107405,1711900240269,-2128.19,0.00041095,8]
[321107407,1711900240278,-2128.19,0.00041095,8]
[321107409,1711900240288,-2128.19,0.00041095,8]
[321107412,1711900240298,-2128.19,0.00041095,8]
[321107414,1711900240307,-2128.19,0.00041095,8]
[321107416,1711900240317,-2128.19,0.00041095,8]
[321107418,1711900240329,-2128.19,0.00041095,8]
[321107420,1711900240338,-787.03,0.00041096,45]
[321107422,1711900240348,-200.0,0.00041096,30]
[321107424,1711900240357,-1502.84340571,0.0004121,2]
[321107426,1711900240366,-539.0,0.00041315,7]
[321107428,1711900240376,-829.0,0.00041315,7]
[321107430,1711900240386,-150.68,0.0004134,2]
[321107432,1711900240395,-6217.99759325,0.0004135,10]
[321107434,1711900240404,-523.0,0.00041369,7]
[321107436,1711900240415,-1000.0,0.00041395,30]
[321107438,1711900240424,-1502.84340571,0.00041554,2]
[321107440,1711900240434,-150.0,0.000417,34]
[321107442,1711900240443,-166.36,0.00041735,2]
[321107443,1711900240453,-997.42762777,0.00041774,2]
[321107444,1711900240463,-2931.311406,0.000418,34]
[321107445,1711900240473,-17832.31373691,0.00041852,2]
[321107446,1711900240482,-16440.04458401,0.00041863,2]
[321107447,1711900240492,-176.39711559,0.00041896,30]
[321107448,1711900240502,-1502.84340571,0.00041899,2]
[321107449,1711900240514,-2300.0,0.000419,15]
[321107450,1711900240524,-161.37966254,0.00041957,30]
[321107451,1711900240534,-1000.0,0.00041988,30]
[321107452,1711900240543,-177.459064,0.00041989,30]
[321107453,1711900240553,-819.4738,0.00041989,30]
[321107454,1711900240562,-2910.906099,0.00041989,30]
[321107455,1711900240571,-226.796477,0.00041989,30]
[321107456,1711900240580,-237.830648,0.00041989,30]
[321107457,1711900240590,-717.200524,0.00041989,30]
[321107458,1711900240601,-161.997485,0.00041989,30]
[321107459,1711900240611,-166.243736,0.00041989,30]
[321107460,1711900240620,-177.459066,0.00041989,30]
[321107461,1711900240630,-219.67719,0.00041989,30]
[321107462,1711900240640,-236.612083,0.00041989,30]
[321107463,1711900240650,-585.805841,0.00041989,30]
[321107464,1711900240659,-161.668355,0.00041989,30]
[321107465,1711900240669,-185.855171,0.00041989,30]
[321107466,1711900240678,-173.50973314,0.00041998,4]
[321107467,1711900240688,-544.97472586,0.00041998,4]
[321107468,1711900240698,-347.29037864,0.00041999,4]
[321107469,1711900240707,-310.0,0.00041999,4]
[321107470,1711900240717,-213.07166725,0.00041999,4]
[321107471,1711900240726,-363.88509235,0.00041999,4]
[321107472,1711900240735,-2128.19,0.00041999,8]
[321107473,1711900240744,-4600.0,0.00042,15]
[321107474,1711900240754,-158278.24504259,0.00042,7]
[321107475,1711900240764,-158.41351975,0.00042003,2]
[321107476,1711900240773,-150.0,0.00042043,2]
[321107477,1711900240782,-150.0,0.00042055,2]
[321107478,1711900240792,-150.0,0.00042098,2]
[321107479,1711900240801,-6900.0,0.000421,15]
[321107480,1711900240810,-500.0,0.00042116,7]
[321107481,1711900240820,-312.0,0.00042116,7]
[321107482,1711900240829,-304.0,0.00042116,7]
[321107483,1711900240839,-301.0,0.00042116,7]
[321107484,1711900240849,-507.0,0.00042116,7]
[321107485,1711900240858,-150.0,0.00042126,2]
[321107486,1711900240868,-539.0,0.00042137,7]
[321107487,1711900240877,-829.0,0.00042137,7]
[321107488,1711900240886,-163.59,0.0004214,2]
[321107489,1711900240894,-1465.85059961,0.0004214,2]
[321107490,1711900240903,-997.42762776,0.0004215,2]
[321107491,1711900240912,-150.0,0.00042157,2]
[321107492,1711900240921,-150.0,0.00042165,2]
[321107493,1711900240931,-150.0,0.00042167,2]
[321107494,1711900240940,-150.0,0.00042169,2]
[321107495,1711900240949,-523.0,0.00042191,7]
[321107496,1711900240958,-150.0,0.00042195,2]
[321107497,1711900240968,-9200.0,0.000422,15]
[321107498,1711900240977,-150.0,0.00042219,2]
[321107499,1711900240987,-1502.84340571,0.00042243,2]
[321107500,1711900240996,-150.0,0.00042244,2]
[321107501,1711900241005,-150.0,0.00042246,2]
[321107502,1711900241015,-150.0,0.00042264,2]
[321107503,1711900241024,-150.0,0.00042266,2]
[321107504,1711900241033,-150.0,0.00042266,2]
[321107505,1711900241042,-150.0,0.00042278,2]
[321107506,1711900241052,-150.0,0.00042279,2]
[321107507,1711900241061,-150.0,0.00042279,2]
[321107508,1711900241070,-11500.0,0.000423,15]
[321107509,1711900241079,-150.0,0.00042301,2]
[321107510,1711900241088,-150.0,0.00042304,2]
[321107511,1711900241097,-150.0,0.00042314,2]
[321107512,1711900241106,-150.0,0.0004232,2]
[321107513,1711900241117,-150.0,0.00042325,2]
[321107514,1711900241126,-150.0,0.00042336,2]
[321107515,1711900241135,-250.31075792,0.0004235,4]
[321107516,1711900241144,-150.0,0.00042364,2]
[321107517,1711900241154,-150.0,0.00042375,2]
[321107519,1711900241163,-1465.85059961,0.00042394,2]
[321107521,1711900241172,-150.0,0.00042399,2]
[321107523,1711900241181,-2300.0,0.000424,15]
[321107525,1711900241190,-150.0,0.00042424,2]
[321107527,1711900241199,-150.0,0.00042441,2]
[321107529,1711900241208,-150.0,0.00042444,2]
[321107531,1711900241218,-150.0,0.00042449,2]
[321107533,1711900241227,-480.0,0.00042457,2]
[321107535,1711900241237,-1465.85059961,0.00042492,2]
[321107536,1711900241247,-2300.0,0.000425,15]
[321107537,1711900241257,-150.0,0.00042502,2]
[321107538,1711900241266,-150.0,0.00042503,2]
[321107539,1711900241275,-819.4738,0.00042514,30]
[321107540,1711900241284,-2910.906099,0.00042514,30]
[321107541,1711900241294,-226.796477,0.00042514,30]
[321107542,1711900241303,-237.830648,0.00042514,30]
[321107543,1711900241313,-717.200524,0.00042514,30]
[321107544,1711900241322,-219.67719,0.00042514,30]
[321107545,1711900241331,-585.805841,0.00042514,30]
[321107546,1711900241340,-997.42762776,0.00042526,2]
[321107547,1711900241349,-150.0,0.00042526,2]
[321107548,1711900241359,-150.0,0.00042532,2]
[321107549,1711900241368,-150.0,0.0004255,2]
[321107550,1711900241378,-150.68,0.00042553,2]
[321107551,1711900241387,-150.0,0.00042556,2]
[321107552,1711900241396,-150.0,0.00042556,2]
[321107553,1711900241407,-150.0,0.00042557,2]
[321107554,1711900241417,-150.0,0.00042557,2]
[321107555,1711900241425,-150.0,0.00042559,2]
[321107556,1711900241436,-150.0,0.00042563,2]
[321107557,1711900241445,-150.0,0.00042566,2]
[321107559,1711900241455,-1502.84340571,0.00042588,2]
[321107561,1711900241464,-150.0,0.00042588,2]
[321107563,1711900241473,-2300.0,0.000426,15]
[321107565,1711900241482,-150.0,0.0004261,2]
[321107567,1711900241491,-150.0,0.00042625,2]
[321107569,1711900241500,-150.0,0.00042628,2]
[321107571,1711900241511,-150.62124202,0.00042641,60]
[321107573,1711900241519,-150.0,0.00042651,2]
[321107575,1711900241529,-159.9999803,0.00042663,15]
[321107577,1711900241538,-150.0,0.00042663,2]
[321107579,1711900241547,-150.0,0.00042671,2]
[321107581,1711900241557,-150.0,0.0004269,2]
[321107583,1711900241566,-2300.0,0.000427,15]
[321107585,1711900241575,-493.24080261,0.00042718,60]
[321107586,1711900241585,-150.0,0.00042732,2]
[321107587,1711900241593,-150.0,0.00042758,2]
[321107588,1711900241602,-150.0,0.00042767,2]
[321107589,1711900241611,-150.0,0.00042775,2]
[321107590,1711900241620,-4033.655,0.00042778,4]
[321107591,1711900241629,-190.47272846,0.00042779,17]
[321107592,1711900241638,-501.88223324,0.00042779,2]
[321107593,1711900241647,-1209.3388,0.00042779,2]
[321107594,1711900241656,-155063.9907,0.00042779,2]
[321107595,1711900241665,-2204.3,0.00042779,2]
[321107596,1711900241674,-150.0,0.00042794,2]
[321107597,1711900241684,-154.24,0.000428,4]
[321107598,1711900241693,-154.24,0.000428,4]
[321107599,1711900241702,-154.24,0.000428,4]
[321107600,1711900241712,-154.24,0.000428,4]
[321107601,1711900241722,-154.24,0.000428,4]
[321107602,1711900241731,-154.24,0.000428,4]
[321107603,1711900241741,-2622.0,0.000428,15]
[321107604,1711900241751,-3613.29,0.000428,4]
[321107605,1711900241760,-3613.29,0.000428,4]
[321107606,1711900241770,-3613.29,0.000428,4]
[321107607,1711900241779,-3613.29,0.000428,4]
[321107608,1711900241788,-3613.29,0.000428,4]
[321107609,1711900241798,-3613.29,0.000428,4]
[321107610,1711900241807,-3613.29,0.000428,4]
[321107611,1711900241816,-3613.29,0.000428,4]
[321107612,1711900241825,-3613.29,0.000428,4]
[321107613,1711900241835,-3613.29,0.000428,4]
[321107614,1711900241844,-3613.29,0.000428,4]
[321107615,1711900241853,-3613.29,0.000428,4]
[321107616,1711900241863,-3613.29,0.000428,4]
[321107617,1711900241871,-3613.29,0.000428,4]
[321107618,1711900241881,-3613.29,0.000428,4]
[321107619,1711900241890,-3613.29,0.000428,4]
[321107620,1711900241899,-3613.29,0.000428,4]
[321107621,1711900241909,-3613.29,0.000428,4]
[321107622,1711900241920,-3613.29,0.000428,4]
[321107623,1711900241929,-3613.29,0.000428,4]
[321107624,1711900241939,-1465.85059961,0.00042804,2]
[321107625,1711900241950,-150.0,0.00042811,2]
[321107626,1711900241960,-150.0,0.00042827,2]
[321107627,1711900241970,-150.0,0.00042828,2]
[321107628,1711900241979,-150.68,0.00042868,2]
[321107629,1711900241989,-150.0,0.00042871,2]
[321107630,1711900241998,-150.0,0.00042876,2]
[321107631,1711900242008,-995.34342008,0.00042877,5]
[321107632,1711900242017,-3842.46055403,0.00042877,2]
[321107633,1711900242027,-2086.23049599,0.00042877,4]
[321107634,1711900242036,-155.33707112,0.00042877,4]
[321107635,1711900242046,-20179.81560078,0.00042877,4]
[321107636,1711900242055,-797.98373214,0.00042878,60]
[321107637,1711900242065,-897.23178937,0.00042878,60]
[321107638,1711900242074,-57507.62714834,0.00042878,120]
[321107639,1711900242084,-8909.09509034,0.00042879,4]
[321107640,1711900242094,-1022.24395921,0.00042879,4]
[321107641,1711900242103,-155.0,0.0004288,4]
[321107642,1711900242113,-155.0,0.0004288,4]
[321107643,1711900242123,-222.35423823,0.0004288,4]
[321107644,1711900242132,-1336.40464735,0.00042881,4]
[321107645,1711900242142,-150.0,0.00042896,2]
[321107646,1711900242294,-997.42762776,0.00042901,2]
[321107647,1711900242308,-150.0,0.00042913,2]
[321107648,1711900242318,-156.73066867,0.00042913,30]
[321107649,1711900242327,-1502.84340571,0.00042932,2]
[321107650,1711900242337,-1853.86886585,0.00042946,2]
[321107651,1711900242346,-3532.30576725,0.00042946,2]
[321107652,1711900242355,-11610.18982396,0.00042946,36]
[321107653,1711900242365,-15370.90858556,0.00042946,2]
[321107654,1711900242374,-26076.38457178,0.00042946,2]
[321107655,1711900242383,-6217.99759325,0.00042946,11]
[321107656,1711900242393,-197.94233674,0.00042946,8]
[321107657,1711900242402,-4208.46431651,0.00042946,59]
[321107658,1711900242412,-1897.99780825,0.00042946,2]
[321107659,1711900242421,-150.0,0.00042956,2]
[321107660,1711900242430,-539.0,0.00042959,7]
[321107661,1711900242441,-829.0,0.00042959,7]
[321107662,1711900242451,-150.0,0.00042967,2]
[321107663,1711900242461,-150.0,0.00042983,2]
[321107664,1711900242471,-150.0,0.00042989,2]
[321107665,1711900242480,-150.0,0.00042999,2]
[321107666,1711900242489,-600.0,0.00043,3]
[321107667,1711900242498,-2328.60116594,0.00043,4]
[321107668,1711900242507,-15240.49635704,0.00043,17]
[321107669,1711900242516,-180.0,0.00043,90]
[321107670,1711900242526,-150.0,0.00043004,2]
[321107671,1711900242535,-523.0,0.00043013,7]
[321107672,1711900242544,-150.0,0.00043015,2]
[321107673,1711900242554,-15240.49635693,0.00043025,17]
[321107674,1711900242563,-150.0,0.00043033,2]